bitfinex/quotes_SOLUSD_20250822
["timestamp","ask_amount","ask_price","bid_price","bid_amount"]
[1755821516636,42.72,181.55,181.54,26.0]
[1755821516821,48.31692202,181.55,181.54,26.0]
[1755821517713,43.39,181.55,181.54,26.0]
[1755821517913,47.64692202,181.55,181.54,26.0]
[1755821518330,48.31692202,181.55,181.54,26.0]
[1755821519105,48.31692202,181.55,181.49,26.0]
[1755821519415,0.67,181.54,181.49,26.0]
[1755821519614,0.67,181.54,181.48,16.568635]
[1755821519615,0.67,181.54,181.51,26.0]
[1755821519820,0.67,181.54,181.48,16.568635]
[1755821520011,0.67,181.54,181.46,0.03]
[1755821520209,8.48717547,181.54,181.46,0.03]
[1755821520523,0.67,181.53,181.48,26.0]
[1755821520721,4.92692202,181.49,181.48,26.0]
[1755821520917,48.29692202,181.49,181.46,0.03]
[1755821521133,4.92692202,181.47,181.46,0.03]
[1755821521638,27.56415394,181.47,181.45,0.03]
[1755821521935,47.62692202,181.46,181.45,0.03]
[1755821522232,48.29692202,181.46,181.45,0.03]
[1755821523120,53.22384404,181.46,181.45,0.03]
[1755821523311,71.1948584,181.46,181.45,0.03]
[1755821523640,13.59559401,181.45,181.44,0.03]
[1755821523810,27.14877494,181.45,181.44,0.03]
[1755821524005,31.92996503,181.45,181.42,0.03]
[1755821524216,18.52251603,181.43,181.42,0.03]
[1755821524418,13.59559401,181.42,181.38,0.03]
[1755821524724,4.92692202,181.41,181.38,0.03]
[1755821524922,19.19251603,181.41,181.38,0.03]
[1755821525232,13.59559401,181.4,181.38,0.03]
[1755821525412,47.62692202,181.39,181.32,0.03]
[1755821525611,4.92692202,181.38,181.32,0.03]
[1755821525814,5.59692202,181.38,181.32,26.03]
[1755821526053,19.19251603,181.38,181.32,0.03]
[1755821526262,4.92692202,181.33,181.32,0.03]
[1755821526547,47.64692202,181.33,181.32,26.03]
[1755821527044,42.72,181.33,181.32,0.03]
[1755821527212,47.64692202,181.33,181.32,0.03]
[1755821527410,48.31692202,181.33,181.32,0.03]
[1755821527807,48.31692202,181.33,181.3,0.03]
[1755821527808,61.91251603,181.33,181.3,0.03]
[1755821528016,4.92692202,181.31,181.3,26.03]
[1755821528617,5.59692202,181.31,181.3,26.03]
[1755821528835,5.59692202,181.31,181.3,0.03]
[1755821530932,5.59692202,181.31,181.28,0.03]
[1755821531140,56.31559401,181.33,181.27,42.622462]
[1755821531141,23.44943805,181.29,181.27,0.03]
[1755821531340,4.92692202,181.28,181.27,0.03]
[1755821531645,47.64692202,181.28,181.27,0.03]
[1755821532536,4.92692202,181.28,181.27,0.03]
[1755821532739,47.66692202,181.28,181.27,0.03]
[1755821533713,47.66692202,181.28,181.27,26.03]
[1755821535144,47.68692202,181.28,181.27,26.03]
[1755821535923,47.68692202,181.28,181.27,26.7]
[1755821536432,42.76,181.28,181.27,26.7]
[1755821536634,132.4,181.29,181.28,26.0]
[1755821536837,132.4,181.29,181.28,26.67]
[1755821536838,175.14,181.29,181.28,26.67]
[1755821537233,42.74,181.29,181.28,26.67]
[1755821538348,4.92692202,181.31,181.28,26.67]
[1755821538546,42.76,181.29,181.28,26.0]
[1755821539129,42.76,181.29,181.28,26.67]
[1755821539341,4.92692202,181.32,181.28,26.67]
[1755821539659,4.92692202,181.33,181.29,0.67]
[1755821539825,42.76,181.32,181.29,0.67]
[1755821540160,47.68692202,181.32,181.31,26.0]
[1755821540644,132.4,181.34,181.32,26.0]
[1755821540849,132.4,181.34,181.33,26.0]
[1755821541048,180.08692202,181.34,181.33,26.67]
[1755821541228,175.16,181.34,181.33,26.67]
[1755821543156,132.4,181.34,181.33,26.67]
[1755821543364,175.16,181.34,181.33,0.67]
[1755821544633,42.76,181.34,181.33,0.67]
[1755821546380,42.82,181.34,181.32,26.0]
[1755821546592,42.82,181.34,181.32,26.67]
[1755821546778,42.82,181.34,181.33,0.67]
[1755821546976,42.82,181.34,181.33,26.67]
[1755821547356,42.82,181.34,181.33,43.254207]
[1755821548353,42.82,181.34,181.33,42.584207]
[1755821549270,47.74692202,181.34,181.33,42.584207]
[1755821550259,48.44692202,181.34,181.33,42.584207]
[1755821550860,47.74692202,181.34,181.33,42.584207]
[1755821553150,4.98692202,181.34,181.33,42.584207]
[1755821553352,42.8,181.34,181.33,43.254207]
[1755821554064,0.06,181.34,181.33,43.254207]
[1755821554263,42.8,181.34,181.33,43.254207]
[1755821554564,47.72692202,181.34,181.33,42.584207]
[1755821554958,48.42692202,181.34,181.33,42.584207]
[1755821555170,48.42692202,181.34,181.28,0.7]
[1755821555388,4.92692202,181.29,181.28,0.7]
[1755821555566,47.66692202,181.29,181.28,26.03]
[1755821555759,47.66692202,181.29,181.28,0.03]
[1755821556481,42.74,181.29,181.28,0.03]
[1755821556663,47.66692202,181.29,181.28,2.242022]
[1755821557488,47.66692202,181.29,181.28,28.912022]
[1755821558179,47.66692202,181.29,181.28,28.242022]
[1755821559891,47.66692202,181.29,181.28,2.242022]
[1755821560069,48.36692202,181.29,181.28,2.242022]
[1755821560586,48.36692202,181.29,181.28,0.03]
[1755821560789,48.36692202,181.29,181.28,26.03]
[1755821561084,48.36692202,181.29,181.27,0.03]
[1755821561085,53.29384404,181.29,181.27,0.03]
[1755821561291,10.55384404,181.28,181.27,0.03]
[1755821561590,142.95384404,181.28,181.27,0.03]
[1755821562177,142.95384404,181.28,181.26,0.03]
[1755821562474,53.29384404,181.27,181.24,0.03]
[1755821562671,4.92692202,181.25,181.24,0.03]
[1755821562967,47.66692202,181.25,181.24,0.03]
[1755821563181,61.96251603,181.25,181.22,0.03]
[1755821563366,4.92692202,181.23,181.22,0.03]
[1755821563559,47.66692202,181.23,181.22,0.03]
[1755821563754,48.36692202,181.23,181.22,0.03]
[1755821564279,47.66692202,181.23,181.22,0.7]
[1755821565001,4.56830118,181.29,181.23,26.0]
[1755821565165,4.92692202,181.26,181.24,26.0]
[1755821565357,47.66692202,181.25,181.24,26.0]
[1755821565785,47.66692202,181.25,181.24,0.67]
[1755821565786,42.74,181.25,181.24,0.67]
[1755821565976,42.74,181.25,181.24,22.78000779]
[1755821566274,5.32830118,181.34,181.27,26.0]
[1755821566473,4.92692202,181.3,181.28,0.67]
[1755821566692,42.76,181.29,181.27,26.0]
[1755821566877,42.76,181.29,181.27,30.92692202]
[1755821567261,42.76,181.29,181.28,5.63692202]
[1755821567466,4.92692202,181.33,181.31,26.0]
[1755821567685,47.68692202,181.32,181.31,26.0]
[1755821567893,51.39206409,181.32,181.31,26.0]
[1755821568080,51.39206409,181.32,181.3,26.0]
[1755821568366,47.68692202,181.32,181.3,26.0]
[1755821569003,0.06,181.34,181.31,0.71]
[1755821569210,42.76,181.33,181.31,26.71]
[1755821569382,42.76,181.33,181.31,26.0]
[1755821570072,47.68692202,181.33,181.31,26.0]
[1755821571186,47.68692202,181.33,181.31,26.71]
[1755821571901,47.68692202,181.33,181.31,26.0]
[1755821572110,47.68692202,181.33,181.32,16.586957]
[1755821572997,56.17877735,181.33,181.31,26.0]
[1755821573196,13.41877735,181.32,181.31,26.0]
[1755821573404,9.29677351,181.32,181.31,26.0]
[1755821575086,8.63677351,181.32,181.31,26.0]
[1755821576297,4.92692202,181.32,181.31,26.0]
[1755821576605,180.08692202,181.33,181.31,26.71]
[1755821576900,132.4,181.33,181.32,0.71]
[1755821577098,175.14,181.33,181.32,0.71]
[1755821577800,175.14,181.33,181.3,17.299709]
[1755821578008,175.14,181.33,181.31,0.71]
[1755821578381,180.06692202,181.33,181.31,0.71]
[1755821579389,180.06692202,181.33,181.3,42.589709]
[1755821579390,180.06692202,181.33,181.3,26.0]
[1755821579593,180.06692202,181.33,181.32,16.587874]
[1755821581490,180.06692202,181.33,181.32,17.297874]
[1755821581690,175.14,181.33,181.32,17.297874]
[1755821583306,180.06692202,181.33,181.32,17.297874]
[1755821583802,137.32692202,181.33,181.32,17.297874]
[1755821583995,180.06692202,181.33,181.32,16.587874]
[1755821584508,175.14,181.33,181.32,16.587874]
[1755821584806,180.06692202,181.33,181.32,16.587874]
[1755821585009,180.72692202,181.33,181.32,16.587874]
[1755821585211,180.06692202,181.33,181.32,26.0]
[1755821585507,180.72692202,181.33,181.3,26.0]
[1755821585709,133.06,181.33,181.31,16.587874]
[1755821585905,42.74,181.32,181.31,16.587874]
[1755821586902,47.66692202,181.32,181.31,16.587874]
[1755821587396,47.66692202,181.32,181.29,0.71]
[1755821587596,4.92692202,181.31,181.29,0.71]
[1755821587799,42.74,181.3,181.29,0.71]
[1755821588008,42.74,181.3,181.29,26.71]
[1755821588189,47.66692202,181.3,181.29,0.71]
[1755821589335,0.06,181.34,181.31,26.0]
[1755821589611,0.06,181.34,181.33,26.0]
[1755821589797,42.8,181.34,181.33,26.0]
[1755821590108,42.8,181.34,181.33,0.71]
[1755821590488,0.06,181.34,181.33,17.294206]
[1755821590692,42.8,181.34,181.33,17.294206]
[1755821590887,42.8,181.34,181.33,16.584206]
[1755821591095,42.8,181.34,181.33,26.71]
[1755821591301,42.8,181.34,181.33,43.294206]
[1755821592197,42.8,181.34,181.33,42.584206]
[1755821592404,47.72692202,181.34,181.32,26.0]
[1755821592607,4.92692202,181.33,181.32,26.0]
[1755821593313,47.72692202,181.34,181.32,26.0]
[1755821593521,42.8,181.34,181.33,26.0]
[1755821593699,42.8,181.34,181.33,26.71]
[1755821595721,0.06,181.34,181.33,26.71]
[1755821597321,0.06,181.34,181.33,37.15172927]
[1755821598015,0.06,181.34,181.33,53.73410227]
[1755821598394,0.06,181.34,181.33,54.01842541]
[1755821603803,0.06,181.34,181.33,67.61401942]
[1755821604294,0.06,181.34,181.33,110.35401942]
[1755821606033,0.06,181.36,181.33,115.28094144]
[1755821606201,0.06,181.36,181.35,23.73376119]
[1755821606403,0.06,181.36,181.35,66.45376119]
[1755821606624,0.06,181.37,181.36,13.87991715]
[1755821606801,0.06,181.37,181.36,19.51683917]
[1755821608125,0.06,181.37,181.36,25.03073418]
[1755821608634,0.06,181.37,181.36,11.43514017]
[1755821612315,0.06,181.37,181.36,13.64526817]
[1755821614858,0.06,181.37,181.36,8.71834615]
[1755821615132,0.06,181.37,181.36,7.72402301]
[1755821615641,0.06,181.37,181.36,2.210128]
[1755821615824,0.06,181.37,181.36,7.13705002]
[1755821617239,0.06,181.37,181.36,12.65094503]
[1755821617427,0.06,181.37,181.36,13.36094503]
[1755821617825,0.06,181.37,181.36,12.65094503]
[1755821619410,0.06,181.37,181.36,39.64526817]
[1755821619833,0.06,181.37,181.36,13.64526817]
[1755821620034,0.06,181.37,181.36,27.24086218]
[1755821620340,0.06,181.37,181.36,69.94086218]
[1755821625750,0.06,181.37,181.36,65.01394016]
[1755821625951,0.06,181.37,181.36,69.94086218]
[1755821626737,0.06,181.37,181.36,12.7931066]
[1755821627268,0.77,181.37,181.36,12.65094503]
[1755821627562,0.77,181.37,181.36,2.210128]
[1755821628131,0.77,181.37,181.36,28.210128]
[1755821628332,5.69692202,181.37,181.36,2.210128]
[1755821628642,0.77,181.37,181.36,28.210128]
[1755821629364,5.69692202,181.37,181.36,28.210128]
[1755821629531,5.69692202,181.37,181.36,28.240128]
[1755821630471,5.69692202,181.37,181.36,2.240128]
[1755821630971,5.69692202,181.37,181.36,0.03]
[1755821632947,0.77,181.37,181.36,0.03]
[1755821633460,0.06,181.37,181.36,0.03]
[1755821634461,0.77,181.37,181.36,0.03]
[1755821635159,5.69692202,181.37,181.36,0.03]
[1755821638066,9.40751943,181.37,181.36,0.03]
[1755821639260,5.69692202,181.37,181.36,0.03]
[1755821639954,0.06,181.37,181.36,0.03]
[1755821640142,47.68692202,181.37,181.36,0.03]
[1755821640347,48.39692202,181.37,181.36,0.03]
[1755821640760,42.76,181.37,181.36,0.03]
[1755821641072,47.68692202,181.37,181.36,0.03]
[1755821641369,43.47,181.37,181.36,0.03]
[1755821641563,42.76,181.37,181.36,0.03]
[1755821643958,42.76,181.37,181.36,26.03]
[1755821644161,42.76,181.37,181.36,42.611457]
[1755821644561,48.39692202,181.37,181.36,42.611457]
[1755821644750,48.39692202,181.37,181.36,0.03]
[1755821644950,52.1082809,181.37,181.36,0.03]
[1755821646757,3.77135888,181.37,181.36,0.03]
[1755821646946,0.06,181.37,181.36,0.03]
[1755821647152,0.77,181.37,181.36,0.03]
[1755821648165,0.06,181.37,181.36,0.03]
[1755821649061,5.69692202,181.37,181.36,0.03]
[1755821650577,0.06,181.37,181.36,26.03]
[1755821651652,0.06,181.37,181.36,0.75]
[1755821652276,0.06,181.37,181.36,6.26389501]
[1755821652472,0.06,181.37,181.36,11.19081703]
[1755821652850,0.06,181.37,181.36,26.03]
[1755821652851,42.82,181.37,181.36,26.03]
[1755821653182,42.82,181.37,181.36,0.75]
[1755821653953,42.82,181.37,181.36,31.67692202]
[1755821654279,42.82,181.37,181.36,26.75]
[1755821655281,0.06,181.37,181.36,11.19081703]
[1755821656570,0.06,181.37,181.36,0.75]
[1755821656753,0.06,181.37,181.36,26.03]
[1755821656948,47.82692202,181.37,181.36,26.03]
[1755821657362,42.9,181.37,181.36,26.03]
[1755821658088,47.82692202,181.37,181.36,26.03]
[1755821658295,42.9,181.37,181.36,26.03]
[1755821659392,47.82692202,181.37,181.36,26.03]
[1755821660411,48.49692202,181.37,181.36,26.03]
[1755821660616,48.49692202,181.37,181.36,0.03]
[1755821660775,52.20791027,181.37,181.36,0.03]
[1755821662077,51.53791027,181.37,181.36,0.03]
[1755821662289,52.20791027,181.37,181.36,0.03]
[1755821665310,56.32907479,181.37,181.36,0.03]
[1755821665874,52.20791027,181.37,181.36,0.03]
[1755821666510,47.28098825,181.37,181.36,0.03]
[1755821666711,52.20791027,181.37,181.36,0.03]
[1755821667196,56.33002406,181.37,181.36,0.03]
[1755821672002,52.20791027,181.37,181.36,0.03]
[1755821672194,56.33501697,181.37,181.36,0.03]
[1755821672708,56.33399879,181.37,181.36,0.03]
[1755821673079,61.26090351,181.37,181.36,0.03]
[1755821673384,65.88531692,181.37,181.34,0.03]
[1755821673586,9.85384404,181.35,181.32,0.03]
[1755821673806,4.92692202,181.33,181.32,0.03]
[1755821674106,8.63791027,181.33,181.32,0.03]
[1755821674307,9.30791027,181.33,181.32,0.03]
[1755821674495,8.63791027,181.33,181.32,0.03]
[1755821675694,8.63791027,181.33,181.32,0.73]
[1755821676607,5.35441341,181.37,181.32,0.73]
[1755821676608,0.06,181.37,181.32,0.73]
[1755821676780,4.92692202,181.33,181.32,0.03]
[1755821676983,47.68692202,181.33,181.32,0.73]
[1755821677826,47.68692202,181.33,181.32,0.03]
[1755821678784,47.68692202,181.33,181.32,0.73]
[1755821679392,47.68692202,181.33,181.32,0.03]
[1755821680314,47.68692202,181.33,181.32,0.73]
[1755821680702,132.4,181.36,181.33,26.0]
[1755821680907,132.4,181.36,181.34,26.7]
[1755821680908,42.76,181.35,181.34,26.7]
[1755821681207,42.76,181.35,181.34,26.0]
[1755821681593,42.76,181.35,181.34,26.7]
[1755821681994,47.68692202,181.35,181.34,26.7]
[1755821682294,47.68692202,181.35,181.34,26.0]
[1755821683110,56.99366309,181.35,181.32,0.03]
[1755821683320,4.92692202,181.33,181.32,0.03]
[1755821683489,51.41674107,181.33,181.32,0.03]
[1755821683689,52.08674107,181.33,181.32,0.03]
[1755821684114,3.70981905,181.33,181.32,0.73]
[1755821684311,42.78,181.33,181.32,0.73]
[1755821684508,42.78,181.33,181.32,26.73]
[1755821686928,42.8,181.33,181.32,32.2451114]
[1755821687111,42.8,181.33,181.32,40.29248015]
[1755821687302,8.10736875,181.37,181.32,40.29248015]
[1755821687502,42.8,181.36,181.35,26.0]
[1755821687700,0.06,181.37,181.36,26.0]
[1755821687900,42.88,181.37,181.36,26.69]
[1755821689012,42.88,181.37,181.35,26.0]
[1755821689013,50.92736875,181.37,181.35,26.0]
[1755821689222,8.04736875,181.36,181.35,26.0]
[1755821689930,8.70736875,181.36,181.34,26.0]
[1755821690234,50.88736875,181.35,181.34,26.0]
[1755821691796,42.82,181.35,181.34,34.73736875]
[1755821692001,42.82,181.35,181.34,14.25187189]
[1755821692405,0.06,181.37,181.34,14.25187189]
[1755821692622,42.82,181.36,181.35,8.73736875]
[1755821693243,42.82,181.36,181.35,30.83302481]
[1755821693411,42.82,181.36,181.35,17.271457]
[1755821694535,42.82,181.36,181.35,22.78565606]
[1755821697119,42.82,181.36,181.35,17.271457]
[1755821697839,42.82,181.36,181.35,16.581457]
[1755821700536,51.52736875,181.36,181.34,0.03]
[1755821700717,8.70736875,181.35,181.34,0.03]
[1755821701123,50.82736875,181.35,181.34,0.03]
[1755821701514,51.48736875,181.35,181.34,0.03]
[1755821702053,55.20082645,181.35,181.34,0.03]
[1755821704109,46.4934577,181.35,181.34,0.03]
[1755821704325,55.20082645,181.35,181.34,0.03]
[1755821704724,54.54082645,181.35,181.34,0.03]
[1755821705110,55.20082645,181.35,181.34,0.03]
[1755821705722,54.54082645,181.35,181.34,0.03]
[1755821706228,42.78,181.35,181.34,0.72]
[1755821706839,42.88,181.37,181.36,26.0]
[1755821707024,42.88,181.37,181.35,8.04736875]
[1755821707219,42.88,181.37,181.36,0.69]
[1755821708123,42.88,181.37,181.36,8.737369]
[1755821708443,42.88,181.37,181.36,22.29863276]
[1755821709543,42.88,181.37,181.36,34.737369]
[1755821709842,42.88,181.37,181.36,8.737369]
[1755821710021,42.88,181.37,181.36,14.25126401]
[1755821711832,42.88,181.37,181.36,8.737369]
[1755821712341,42.88,181.37,181.36,34.047369]
[1755821712534,42.88,181.37,181.36,8.047369]
[1755821713930,47.81586057,181.37,181.36,8.047369]
[1755821714129,48.47586057,181.37,181.36,8.047369]
[1755821714343,48.47586057,181.37,181.34,0.03]
[1755821714525,4.93586057,181.36,181.35,8.047369]
[1755821714731,5.59586057,181.36,181.35,8.047369]
[1755821714926,42.88,181.37,181.35,8.047369]
[1755821715130,42.88,181.37,181.36,26.69]
[1755821715724,42.88,181.37,181.36,0.69]
[1755821716957,42.88,181.37,181.36,6.20389501]
[1755821717318,0.06,181.37,181.36,11.13975558]
[1755821717933,0.06,181.37,181.36,11.11975558]
[1755821718120,0.06,181.37,181.36,6.18389501]
[1755821718319,0.06,181.37,181.36,11.11975558]
[1755821721122,0.06,181.37,181.36,11.40407872]
[1755821721352,0.06,181.37,181.36,24.99967273]
[1755821724033,0.06,181.37,181.36,6.46821815]
[1755821724240,0.06,181.37,181.36,10.44975558]
[1755821725929,0.06,181.37,181.35,8.047369]
[1755821726135,5.70586057,181.37,181.35,8.047369]
[1755821726729,0.77,181.37,181.35,8.047369]
[1755821726930,5.70586057,181.37,181.35,8.047369]
[1755821727850,5.64586057,181.36,181.35,8.047369]
[1755821728045,48.44586057,181.36,181.35,8.047369]
[1755821728233,48.44586057,181.36,181.34,0.03]
[1755821728557,42.8,181.36,181.35,34.047369]
[1755821728733,0.06,181.37,181.35,34.047369]
[1755821728928,47.79586057,181.37,181.35,34.047369]
[1755821729154,5.64586057,181.36,181.35,34.047369]
[1755821729530,42.8,181.36,181.35,34.047369]
[1755821729735,0.06,181.37,181.35,45.16742863]
[1755821729943,0.06,181.37,181.36,5.60586057]
[1755821730346,0.06,181.37,181.36,8.71154689]
[1755821730937,0.06,181.37,181.36,26.0]
[1755821732058,8.57154689,181.37,181.36,26.0]
[1755821732659,51.39154689,181.37,181.35,34.047369]
[1755821732861,8.51154689,181.36,181.35,8.047369]
[1755821733749,8.51154689,181.36,181.34,0.03]
[1755821733950,8.51154689,181.35,181.34,0.03]
[1755821734343,8.04154689,181.35,181.34,0.03]
[1755821734550,8.51154689,181.35,181.34,0.03]
[1755821735357,12.22578131,181.35,181.34,0.03]
[1755821738458,25.82137532,181.35,181.32,0.03]
[1755821738659,21.6371409,181.33,181.32,0.03]
[1755821738968,25.63569846,181.33,181.32,0.03]
[1755821739146,8.04154689,181.31,181.3,0.03]
[1755821739353,186.99578131,181.31,181.3,0.03]
[1755821739551,187.70578131,181.31,181.3,0.03]
[1755821740339,179.66423442,181.31,181.3,0.03]
[1755821740545,183.28154689,181.31,181.3,0.03]
[1755821741356,183.99154689,181.31,181.3,0.03]
[1755821741857,187.69869647,181.31,181.3,0.03]
[1755821742253,195.74024336,181.31,181.28,0.03]
[1755821742565,195.74024336,181.31,181.22,0.03]
[1755821742566,23.59559401,181.28,181.22,0.03]
[1755821742870,8.04154689,181.25,181.22,0.03]
[1755821743045,8.04154689,181.23,181.22,0.03]
[1755821743251,11.74654644,181.23,181.22,0.03]
[1755821743455,8.75154689,181.23,181.22,0.03]
[1755821743972,13.59559401,181.22,181.2,0.03]
[1755821744152,50.94154689,181.21,181.2,0.03]
[1755821744347,51.65154689,181.21,181.2,0.03]
[1755821744750,0.71,181.21,181.2,0.03]
[1755821744948,50.94154689,181.21,181.2,0.03]
[1755821745268,51.65154689,181.21,181.2,0.03]
[1755821747354,65.2471409,181.21,181.2,0.03]
[1755821747660,65.2471409,181.21,181.17,0.1]
[1755821747861,8.04154689,181.19,181.17,0.1]
[1755821748064,50.98154689,181.19,181.17,0.1]
[1755821748269,51.67154689,181.19,181.17,0.1]
[1755821750777,50.96154689,181.19,181.17,0.1]
[1755821753294,132.4,181.21,181.18,0.71]
[1755821753448,8.04154689,181.19,181.18,0.71]
[1755821753863,8.04154689,181.19,181.18,26.71]
[1755821754379,51.00154689,181.19,181.18,26.71]
[1755821755162,51.00154689,181.19,181.18,26.03]
[1755821755871,51.00154689,181.19,181.18,0.71]
[1755821756450,51.00154689,181.19,181.18,0.03]
[1755821756656,51.00154689,181.19,181.18,0.71]
[1755821757058,42.96,181.19,181.18,0.71]
[1755821757654,8.10154689,181.24,181.18,14.27091988]
[1755821757855,8.10154689,181.24,181.22,26.0]
[1755821757856,42.96,181.23,181.22,26.0]
[1755821758162,51.00154689,181.23,181.22,26.0]
[1755821758377,51.00154689,181.23,181.19,26.68]
[1755821758572,8.04154689,181.21,181.2,0.68]
[1755821758885,51.00154689,181.21,181.2,0.68]
[1755821759977,51.00154689,181.21,181.18,0.03]
[1755821760297,42.96,181.21,181.2,26.0]
[1755821761185,43.65,181.21,181.18,0.03]
[1755821761392,8.04154689,181.19,181.18,0.03]
[1755821761562,51.00154689,181.19,181.18,0.03]
[1755821761761,132.4,181.23,181.18,0.03]
[1755821761762,133.15,181.23,181.18,26.71]
[1755821762083,8.04154689,181.19,181.18,28.243185]
[1755821762264,51.02154689,181.19,181.18,28.243185]
[1755821762869,42.98,181.19,181.18,2.243185]
[1755821763073,51.02154689,181.19,181.18,2.243185]
[1755821763269,42.98,181.19,181.18,2.923185]
[1755821763469,51.02154689,181.19,181.18,28.923185]
[1755821763790,132.46,181.23,181.19,26.0]
[1755821763964,8.04154689,181.22,181.2,26.68]
[1755821764290,42.98,181.22,181.21,0.68]
[1755821764589,42.98,181.22,181.21,26.68]
[1755821766573,140.50154689,181.23,181.21,26.68]
[1755821766574,132.46,181.23,181.22,26.0]
[1755821766885,43.06,181.23,181.22,26.68]
[1755821767988,43.06,181.23,181.22,0.68]
[1755821768366,0.06,181.23,181.22,27.79969761]
[1755821768777,0.06,181.23,181.22,22.28154289]
[1755821769090,0.06,181.23,181.22,27.79969761]
[1755821770370,0.06,181.23,181.22,41.67961476]
[1755821771676,8.04154689,181.34,181.26,26.0]
[1755821771976,8.04154689,181.34,181.33,26.0]
[1755821772190,51.02154689,181.34,181.33,26.0]
[1755821772383,51.02154689,181.34,181.31,26.68]
[1755821772584,51.02154689,181.34,181.32,0.68]
[1755821772893,51.02154689,181.34,181.33,16.58604]
[1755821773814,51.71154689,181.34,181.33,16.58604]
[1755821773972,43.67,181.34,181.29,26.0]
[1755821774173,8.04154689,181.3,181.29,26.0]
[1755821774517,8.04154689,181.3,181.28,26.0]
[1755821774518,51.04154689,181.3,181.28,26.0]
[1755821774685,8.04154689,181.29,181.28,26.0]
[1755821775293,43.0,181.3,181.28,26.0]
[1755821775589,43.0,181.3,181.29,16.589709]
[1755821775590,51.04154689,181.3,181.29,16.589709]
[1755821779096,51.80154689,181.3,181.29,16.589709]
[1755821779600,51.10154689,181.3,181.29,16.589709]
[1755821780403,51.10154689,181.3,181.29,42.589709]
[1755821781398,0.06,181.3,181.29,42.589709]
[1755821781597,43.0,181.3,181.29,25.30125589]
[1755821781989,43.0,181.3,181.29,17.259709]
[1755821783608,0.06,181.3,181.29,17.259709]
[1755821784402,0.06,181.3,181.29,16.589709]
[1755821785207,0.06,181.3,181.29,22.19913225]
[1755821785374,0.06,181.3,181.29,27.71515629]
[1755821792104,0.06,181.3,181.29,53.71515629]
[1755821792300,0.06,181.3,181.29,27.71515629]
[1755821792902,0.06,181.3,181.29,41.59507344]
[1755821797032,0.06,181.32,181.29,41.59507344]
[1755821797033,0.06,181.32,181.31,39.87991715]
[1755821797224,0.06,181.32,181.31,44.8193404]
[1755821797425,0.06,181.32,181.31,45.4893404]
[1755821797991,0.06,181.32,181.31,51.00475598]
[1755821800825,0.06,181.32,181.31,53.21537298]
[1755821801316,0.06,181.32,181.31,48.27594973]
[1755821801513,0.06,181.32,181.31,53.21537298]
[1755821803203,0.06,181.32,181.31,52.54537298]
[1755821803403,0.76,181.32,181.31,2.210617]
[1755821804303,0.76,181.32,181.31,28.210617]
[1755821806624,0.06,181.32,181.31,2.210617]
[1755821807323,0.75,181.32,181.31,28.210617]
[1755821808001,0.75,181.32,181.31,2.210617]
[1755821808207,0.06,181.32,181.31,2.210617]
[1755821808807,0.75,181.32,181.31,28.210617]
[1755821810432,0.75,181.32,181.31,2.210617]